bitfinex/quotes_BTCUSD_20241215
["timestamp","ask_amount","ask_price","bid_price","bid_amount"]
[1734297269744,0.29692216,102970.0,102960.0,0.15010589]
[1734297270707,0.29692216,102970.0,102960.0,0.00010589]
[1734297270936,0.29692216,102970.0,102960.0,0.05839237]
[1734297271136,0.49115416,102970.0,102950.0,0.55059328]
[1734297271386,0.49115416,102970.0,102960.0,0.05828648]
[1734297271387,0.49120871,102970.0,102960.0,0.05828648]
[1734297273423,0.49120871,102970.0,102960.0,0.05837268]
[1734297276706,0.49120871,102970.0,102960.0,0.06444084]
[1734297277137,0.49120871,102970.0,102960.0,0.00615436]
[1734297277345,0.62000871,102970.0,102960.0,0.00615436]
[1734297278631,0.62000871,102970.0,102960.0,0.06444084]
[1734297278632,0.57100871,102970.0,102960.0,0.06444084]
[1734297280105,0.57100871,102970.0,102960.0,0.06444119]
[1734297280315,0.57100871,102970.0,102960.0,0.00615471]
[1734297285931,0.57118111,102970.0,102960.0,0.00615471]
[1734297287004,0.57118111,102970.0,102960.0,8.62e-05]
[1734297287210,0.57118111,102970.0,102960.0,0.00615471]
[1734297289801,0.57118111,102970.0,102960.0,0.00615473]
[1734297292937,0.57118111,102970.0,102960.0,8.62e-05]
[1734297294528,0.57118111,102970.0,102960.0,0.00615473]
[1734297294932,0.57118111,102970.0,102960.0,8.62e-05]
[1734297295749,0.57118111,102970.0,102960.0,0.00615473]
[1734297295943,0.57118111,102970.0,102960.0,8.62e-05]
[1734297297351,0.57118111,102970.0,102960.0,0.00615473]
[1734297303559,0.61858111,102970.0,102960.0,0.00615473]
[1734297304777,1.24943462,102970.0,102960.0,0.00615473]
[1734297305019,1.19162717,102970.0,102960.0,8.62e-05]
[1734297305241,0.83643822,102970.0,102960.0,8.62e-05]
[1734297305451,0.83637092,102970.0,102960.0,8.62e-05]
[1734297305665,0.83637092,102970.0,102960.0,0.05837268]
[1734297305666,0.42482813,102970.0,102960.0,0.05837268]
[1734297305879,0.23059713,102970.0,102960.0,0.05837268]
[1734297306113,0.23011811,102970.0,102960.0,0.05837268]
[1734297306342,0.23011811,102970.0,102960.0,0.31090916]
[1734297306567,0.00386408,102970.0,102960.0,0.52916946]
[1734297306783,0.00386408,102970.0,102960.0,1.6725961]
[1734297306997,0.00386408,102970.0,102960.0,2.33300544]
[1734297307212,0.00147532,102990.0,102980.0,0.194212]
[1734297307491,0.00047902,102990.0,102980.0,3.76289202]
[1734297307725,0.00047902,102990.0,102980.0,3.99781367]
[1734297307937,0.00047902,102990.0,102980.0,3.59158704]
[1734297308166,0.00047902,102990.0,102980.0,1.18938108]
[1734297308375,0.0019613,103010.0,102990.0,0.15]
[1734297308376,0.0493613,103010.0,102990.0,0.15]
[1734297308591,0.09905403,103000.0,102990.0,0.20828648]
[1734297309470,0.17972613,103000.0,102990.0,0.20828648]
[1734297310150,0.17972613,103000.0,102990.0,0.15]
[1734297310361,0.17972613,103000.0,102990.0,0.20828648]
[1734297312065,0.17972613,103000.0,102990.0,0.15]
[1734297312276,0.17972613,103000.0,102980.0,0.15]
[1734297312543,0.17972613,103000.0,102990.0,0.05828648]
[1734297312965,0.17878016,103000.0,102990.0,0.05828648]
[1734297313602,0.17878016,103000.0,102980.0,0.40249848]
[1734297313825,0.17878016,103000.0,102980.0,0.20828648]
[1734297314035,0.14742613,102990.0,102960.0,0.6361493]
[1734297314245,0.04742613,102990.0,102970.0,0.05828648]
[1734297314458,0.24161913,102990.0,102960.0,0.19437875]
[1734297314670,0.24161913,102990.0,102970.0,0.05828648]
[1734297314879,0.00368865,102980.0,102970.0,0.05828648]
[1734297315098,0.24161913,102990.0,102970.0,0.05828648]
[1734297315099,0.194193,102990.0,102970.0,0.05828648]
[1734297315303,0.00399604,102980.0,102970.0,0.05828648]
[1734297315937,0.08369604,102980.0,102970.0,0.20828648]
[1734297316560,0.08466814,102980.0,102970.0,0.20828648]
[1734297316777,0.00479525,102980.0,102970.0,0.20828648]
[1734297316984,0.00732607,102980.0,102970.0,0.20828648]
[1734297317633,0.14693305,102990.0,102970.0,0.20828648]
[1734297317851,0.00610507,102980.0,102970.0,0.20828648]
[1734297318285,0.00508756,102980.0,102970.0,0.20828648]
[1734297318924,0.00635945,102980.0,102970.0,0.20828648]
[1734297319343,0.6436632,103000.0,102970.0,0.20828648]
[1734297319760,2.3329903,103000.0,102990.0,0.05828648]
[1734297319976,2.2329903,103000.0,102980.0,0.05828648]
[1734297320245,2.2339899,103000.0,102990.0,0.05828648]
[1734297320464,2.2329903,103000.0,102990.0,0.05828648]
[1734297320877,2.2329903,103000.0,102990.0,0.25247948]
[1734297321528,2.2329903,103000.0,102990.0,0.40247948]
[1734297321751,2.2329903,103000.0,102990.0,0.15]
[1734297321973,2.2782903,103000.0,102990.0,0.15]
[1734297322398,2.2782903,103000.0,102970.0,0.82158239]
[1734297322623,2.2782903,103000.0,102980.0,0.15]
[1734297323069,2.3602903,103000.0,102980.0,0.15]
[1734297325015,2.3602903,103000.0,102980.0,0.34421]
[1734297326305,2.3602903,103000.0,102980.0,0.15]
[1734297326515,2.5544663,103000.0,102980.0,0.15]
[1734297327961,2.7486523,103000.0,102980.0,0.15]
[1734297328164,0.194193,102990.0,102970.0,0.1500862]
[1734297328365,2.83862766,103000.0,102970.0,0.3443172]
[1734297329421,0.194194,102990.0,102970.0,0.3443172]
[1734297329692,0.388388,102990.0,102970.0,0.1500862]
[1734297329939,0.48744203,102990.0,102970.0,0.1500862]
[1734297330197,0.276212,102980.0,102970.0,0.1500862]
[1734297330443,0.276212,102980.0,102970.0,8.62e-05]
[1734297330629,0.321512,102980.0,102970.0,8.62e-05]
[1734297332760,0.42056603,102980.0,102970.0,8.62e-05]
[1734297332972,0.47056603,102980.0,102970.0,8.62e-05]
[1734297333385,0.49356603,102980.0,102970.0,8.62e-05]
[1734297333800,0.194241,102970.0,102940.0,0.09904191]
[1734297334005,0.48754303,102970.0,102940.0,0.2934247]
[1734297334213,0.48754303,102970.0,102940.0,0.4877027]
[1734297334214,0.68179203,102970.0,102940.0,0.4877027]
[1734297335748,0.19425,102960.0,102940.0,0.20458951]
[1734297335958,0.470514,102960.0,102940.0,0.00010579]
[1734297336317,0.194269,102950.0,102940.0,0.00010579]
[1734297336526,0.61486803,102960.0,102940.0,0.00010579]
[1734297336965,0.61486803,102960.0,102940.0,0.08894098]
[1734297337167,0.80913203,102960.0,102940.0,0.08894098]
[1734297337498,0.61486803,102960.0,102940.0,0.08894098]
[1734297337703,0.61486803,102960.0,102940.0,0.28322698]
[1734297337704,0.32155,102960.0,102940.0,0.28322698]
[1734297337909,0.47048,102970.0,102950.0,0.08883519]
[1734297338126,0.56953403,102970.0,102940.0,0.55830498]
[1734297339773,0.56953403,102970.0,102940.0,0.75258198]
[1734297340330,0.37529303,102970.0,102950.0,0.194267]
[1734297340539,0.082,102970.0,102950.0,0.47737019]
[1734297342004,1.08200001,102970.0,102950.0,0.47737019]
[1734297343234,1.27623301,102970.0,102950.0,0.15]
[1734297343945,1.56953004,102970.0,102950.0,0.15]
[1734297344161,0.24105,102960.0,102950.0,0.15]
[1734297344382,0.31655,102960.0,102940.0,0.19439079]
[1734297344593,0.1223,102960.0,102940.0,0.47750398]
[1734297344804,0.1223,102960.0,102940.0,0.47749698]
[1734297345236,0.1223,102960.0,102950.0,8.62e-05]
[1734297345884,0.31655,102960.0,102950.0,8.62e-05]
[1734297355224,0.41560403,102960.0,102950.0,8.62e-05]
[1734297359077,0.41577663,102960.0,102950.0,8.62e-05]
[1734297367102,2.63968726,102960.0,102950.0,8.62e-05]
[1734297368195,2.63968726,102960.0,102950.0,0.05841739]
[1734297369259,2.22408323,102960.0,102950.0,0.05841739]
[1734297370270,2.22408323,102960.0,102950.0,8.62e-05]
[1734297371953,2.22408323,102960.0,102950.0,0.08897138]
[1734297374023,2.41833323,102960.0,102950.0,8.62e-05]
[1734297374543,2.65018726,102960.0,102950.0,8.62e-05]
[1734297377478,2.51738726,102960.0,102950.0,8.62e-05]
[1734297380728,2.41833323,102960.0,102950.0,8.62e-05]
[1734297381199,2.41833323,102960.0,102940.0,0.47744018]
[1734297381473,2.41833323,102960.0,102940.0,0.75161718]
[1734297381474,2.22408323,102960.0,102940.0,0.75161718]
[1734297383471,2.22408323,102960.0,102940.0,0.75170338]
[1734297383720,2.41833323,102960.0,102940.0,0.55742538]
[1734297384251,2.41833323,102960.0,102940.0,0.75170138]
[1734297388534,2.41833323,102960.0,102940.0,0.55742438]
[1734297388772,2.61258323,102960.0,102940.0,0.55742438]
[1734297391271,2.61258323,102960.0,102940.0,1.27284446]
[1734297391960,2.69948913,102960.0,102940.0,1.27284446]
[1734297392217,2.69948913,102960.0,102940.0,1.24229402]
[1734297393423,2.69948913,102960.0,102940.0,1.04801702]
[1734297393696,0.194269,102950.0,102940.0,0.71550628]
[1734297393958,0.194269,102950.0,102940.0,0.21845949]
[1734297393959,0.277369,102950.0,102940.0,0.21845949]
[1734297394160,0.277369,102950.0,102940.0,8.62e-05]
[1734297394161,0.3642749,102950.0,102940.0,8.62e-05]
[1734297394638,0.49463375,102950.0,102940.0,8.62e-05]
[1734297395361,0.3642749,102950.0,102940.0,8.62e-05]
[1734297395838,0.4133749,102950.0,102940.0,8.62e-05]
[1734297396288,0.56242893,102950.0,102940.0,8.62e-05]
[1734297396536,0.86659958,102950.0,102940.0,8.62e-05]
[1734297398418,0.6926578,102950.0,102940.0,8.62e-05]
[1734297399156,0.70276356,102950.0,102940.0,8.62e-05]
[1734297401262,0.5724827,102950.0,102940.0,8.62e-05]
[1734297402694,0.70256164,102950.0,102940.0,8.62e-05]
[1734297403440,0.70256164,102950.0,102930.0,0.05220201]
[1734297403685,2.36584222,102930.0,102920.0,0.0156283]
[1734297406124,2.49334222,102930.0,102920.0,0.0156283]
[1734297406389,2.59239625,102930.0,102920.0,0.0156283]
[1734297413472,2.6022587,102930.0,102920.0,0.0156283]
[1734297413740,2.6752587,102930.0,102920.0,0.0156283]
[1734297414651,2.7252587,102930.0,102920.0,0.0156283]
[1734297415141,2.81418687,102930.0,102920.0,0.0156283]
[1734297415590,2.7252587,102930.0,102920.0,0.0156283]
[1734297416285,2.6752587,102930.0,102920.0,0.0156283]
[1734297416738,2.8252587,102930.0,102920.0,0.0156283]
[1734297416963,2.35009842,102900.0,102890.0,8.63e-05]
[1734297418180,2.48219842,102900.0,102890.0,8.63e-05]
[1734297418425,2.48219842,102900.0,102890.0,0.00063335]
[1734297419411,2.58125245,102900.0,102890.0,0.00063335]
[1734297420840,2.53215245,102900.0,102890.0,0.00063335]
[1734297422018,2.58215245,102900.0,102890.0,0.00063335]
[1734297422262,2.68120648,102900.0,102890.0,0.00063335]
[1734297422461,2.62805245,102900.0,102890.0,0.00063335]
[1734297423444,2.62805245,102900.0,102870.0,0.16604376]
[1734297423445,0.177,102880.0,102870.0,0.16604376]
[1734297423676,0.6094812,102880.0,102870.0,0.16604376]
[1734297423931,0.7594812,102880.0,102870.0,0.16620791]
[1734297424170,0.67045503,102880.0,102870.0,0.16620791]
[1734297425365,0.7324812,102880.0,102870.0,0.14676591]
[1734297425831,0.7324812,102880.0,102870.0,0.13676591]
[1734297425832,0.64345503,102880.0,102870.0,0.13676591]
[1734297426811,0.67045503,102880.0,102870.0,0.13676591]
[1734297427292,0.62045503,102880.0,102870.0,0.13676591]
[1734297427535,0.67045503,102880.0,102870.0,0.13676591]
[1734297428932,0.63034967,102880.0,102870.0,0.13685211]
[1734297429165,0.68034967,102880.0,102870.0,0.13685211]
[1734297429406,0.48034967,102880.0,102870.0,0.13685211]
[1734297432670,0.48034967,102880.0,102850.0,0.11187689]
[1734297432671,0.194439,102860.0,102850.0,0.11187689]
[1734297433148,0.29349303,102860.0,102850.0,0.09684567]
[1734297433398,0.41909303,102860.0,102850.0,0.09684567]
[1734297433650,0.46909303,102860.0,102850.0,0.09684567]
[1734297437597,0.47926133,102860.0,102850.0,0.09684567]
[1734297438291,0.47926133,102860.0,102850.0,0.09284567]
[1734297438292,0.52926133,102860.0,102850.0,0.09284567]
[1734297440468,0.52926133,102860.0,102850.0,0.09293197]
[1734297440937,0.52943393,102860.0,102850.0,0.09293197]
[1734297441651,0.47943393,102860.0,102850.0,0.09293197]
[1734297442305,0.52943393,102860.0,102850.0,0.09293197]
[1734297444070,0.47943393,102860.0,102850.0,0.09293197]
[1734297444293,0.47943393,102860.0,102850.0,0.26175814]
[1734297444294,0.0001726,102860.0,102850.0,0.26175814]
[1734297444514,0.0001726,102860.0,102850.0,0.50511514]
[1734297450893,0.0001726,102860.0,102850.0,0.31065814]
[1734297451115,0.0001726,102860.0,102850.0,0.22163197]
[1734297451349,0.0001726,102860.0,102850.0,0.17273197]
[1734297451580,0.1946116,102860.0,102850.0,0.09293197]
[1734297453102,0.29366563,102860.0,102850.0,0.09293197]
[1734297453350,0.37026563,102860.0,102850.0,0.09293197]
[1734297459495,0.29366563,102860.0,102850.0,0.09293197]
[1734297466718,0.0001726,102860.0,102850.0,0.26315814]
[1734297468440,0.1946116,102860.0,102850.0,0.17413197]
[1734297469225,0.1946116,102860.0,102850.0,0.09293197]
[1734297473661,0.1946116,102860.0,102840.0,0.11491579]
[1734297473662,0.3890626,102860.0,102840.0,0.11491579]
[1734297473912,0.5835156,102860.0,102840.0,0.11491579]
[1734297474435,0.194457,102850.0,102840.0,0.11491579]
[1734297474931,0.3890636,102860.0,102840.0,0.0765]
[1734297475391,0.5835186,102860.0,102840.0,0.0765]
[1734297475618,0.3890636,102860.0,102850.0,8.63e-05]
[1734297478139,0.48811763,102860.0,102850.0,8.63e-05]
[1734297478405,0.53461763,102860.0,102850.0,8.63e-05]
[1734297478947,0.53461763,102860.0,102830.0,0.23804737]
[1734297478948,0.61291763,102860.0,102830.0,0.23804737]
[1734297479189,0.194461,102850.0,102830.0,0.43253237]
[1734297479441,0.194461,102850.0,102830.0,0.36211117]
[1734297481828,0.61291763,102860.0,102830.0,0.55660617]
[1734297482085,0.80736963,102860.0,102830.0,0.55659517]
[1734297483052,0.61291763,102860.0,102830.0,0.75108117]
[1734297483279,0.0001726,102860.0,102850.0,0.08902617]
[1734297484565,0.05,102850.0,102830.0,0.023]
[1734297484826,0.1,102850.0,102840.0,0.28348917]
[1734297485069,0.05,102850.0,102840.0,0.28348917]
[1734297485538,0.1,102850.0,102840.0,0.28348917]
[1734297486360,0.1,102850.0,102840.0,0.08902617]
[1734297487111,0.1,102850.0,102840.0,0.28350217]
[1734297487632,0.1,102850.0,102840.0,0.35860217]
[1734297490951,0.05,102850.0,102840.0,0.35860217]
[1734297491199,0.1,102850.0,102840.0,0.35860217]
[1734297492121,0.05,102850.0,102840.0,0.38645222]
[1734297492592,0.1,102850.0,102840.0,0.38645222]
[1734297493304,0.05,102850.0,102840.0,0.38645222]
[1734297494735,0.1,102850.0,102840.0,0.38645222]
[1734297495221,0.1,102850.0,102840.0,0.0751]
[1734297495473,0.1,102840.0,102830.0,0.14579063]
[1734297495711,0.1,102840.0,102830.0,0.05852441]
[1734297496175,0.1,102840.0,102830.0,8.63e-05]
[1734297503186,0.1,102840.0,102830.0,0.0891768]
[1734297503669,0.1,102840.0,102830.0,0.1765266]
[1734297503910,0.9739,102850.0,102830.0,0.39469987]
[1734297504204,0.05,102840.0,102830.0,0.7195303]
[1734297504433,0.05,102840.0,102830.0,0.5885056]
[1734297504679,0.05,102840.0,102830.0,0.58851281]
[1734297505379,0.9739,102850.0,102830.0,0.58851281]
[1734297505624,0.9739,102850.0,102830.0,0.71954832]
[1734297505854,0.05,102840.0,102830.0,0.71954832]
[1734297506087,0.05,102840.0,102830.0,0.58851281]
[1734297506319,0.05,102840.0,102830.0,0.71954832]
[1734297508434,0.05,102840.0,102830.0,0.52505332]
[1734297508912,0.05,102840.0,102830.0,0.71953932]
[1734297509626,0.05,102840.0,102830.0,1.03651795]
[1734297509865,0.05,102840.0,102830.0,0.72937171]
[1734297510573,0.05,102840.0,102830.0,1.04635546]
[1734297511072,0.05,102840.0,102830.0,0.85186946]
[1734297511309,0.1001726,102840.0,102830.0,0.54529496]
[1734297511541,0.1001726,102840.0,102830.0,0.22831121]
[1734297511785,0.1001726,102840.0,102830.0,0.0972757]
[1734297512025,0.1806726,102840.0,102830.0,0.0972757]
[1734297512502,0.1806726,102840.0,102830.0,0.22831121]
[1734297513453,0.1806726,102840.0,102830.0,0.22836537]
[1734297515307,0.1306726,102840.0,102830.0,0.22836537]
[1734297515541,0.1806726,102840.0,102830.0,0.51195087]
[1734297515780,0.1806726,102840.0,102830.0,0.63476659]
[1734297516009,0.1806726,102840.0,102830.0,0.31745587]
[1734297516242,0.1806726,102840.0,102830.0,0.22836537]
[1734297516473,0.1806726,102840.0,102830.0,0.42286037]
[1734297517197,0.1806726,102840.0,102830.0,0.42287517]
[1734297517671,0.1806726,102840.0,102830.0,0.74017945]
[1734297518163,0.1806726,102840.0,102830.0,0.79863815]
[1734297520548,0.1806726,102840.0,102830.0,0.15576198]
[1734297521256,0.1806726,102840.0,102820.0,0.84318343]
[1734297521499,0.1806726,102840.0,102830.0,0.0584587]
[1734297523448,0.0461,102830.0,102820.0,0.31646711]
[1734297523684,0.0461,102830.0,102820.0,0.16646711]
[1734297523929,0.0961,102830.0,102820.0,0.00016424]
[1734297524181,0.0961,102830.0,102820.0,0.05862294]
[1734297524182,0.1778,102830.0,102820.0,0.05862294]
[1734297524451,0.422295,102830.0,102820.0,0.00016424]
[1734297524703,0.372295,102830.0,102820.0,0.00016424]
[1734297527660,0.372295,102830.0,102820.0,0.05862294]
[1734297528138,0.372295,102830.0,102820.0,0.00016424]
[1734297528416,0.322295,102830.0,102820.0,0.00016424]
[1734297528733,0.42134903,102830.0,102820.0,0.00016424]
[1734297529451,0.322333,102810.0,102800.0,2.48983992]
[1734297529695,0.42138703,102810.0,102800.0,2.48983992]
[1734297529928,0.42138703,102810.0,102800.0,2.49287904]
[1734297530169,0.42138703,102810.0,102800.0,2.48983992]
[1734297530672,0.27685403,102810.0,102800.0,2.54829862]
[1734297530923,0.05,102810.0,102800.0,2.95130932]
[1734297531169,0.05,102810.0,102800.0,3.14584932]
[1734297531416,0.05,102810.0,102800.0,3.36416806]
[1734297531654,0.05,102810.0,102800.0,3.2330855]
[1734297531902,0.05,102810.0,102800.0,2.4830855]
[1734297533843,0.05,102820.0,102810.0,0.194533]
[1734297534081,0.05,102820.0,102810.0,0.28364623]
[1734297534795,0.12796375,102830.0,102820.0,8.62e-05]
[1734297535002,0.22719018,102830.0,102820.0,8.62e-05]
[1734297535942,0.42168518,102830.0,102820.0,8.62e-05]
[1734297536421,0.22719018,102830.0,102820.0,8.62e-05]
[1734297540490,0.22719018,102830.0,102820.0,0.1946002]
[1734297540734,0.22719018,102830.0,102820.0,8.62e-05]
[1734297541707,0.22719018,102830.0,102820.0,0.1946002]
[1734297542179,0.22719018,102830.0,102820.0,8.62e-05]
[1734297542658,0.27719018,102830.0,102820.0,8.62e-05]
[1734297542889,0.22719018,102830.0,102820.0,8.62e-05]
[1734297544290,0.42168518,102830.0,102820.0,8.62e-05]
[1734297558063,0.17813615,102830.0,102820.0,0.1170703]
[1734297558283,0.14643615,102830.0,102820.0,0.1170703]
[1734297558541,0.10033615,102830.0,102820.0,0.1170703]
[1734297558776,0.10033615,102830.0,102820.0,0.3115843]
[1734297559003,0.10033615,102830.0,102820.0,0.25309225]
[1734297560265,0.05033615,102830.0,102820.0,0.3115843]
[1734297560514,0.00033615,102830.0,102820.0,0.64133833]
[1734297560752,0.00033615,102830.0,102820.0,0.72853301]
[1734297560988,0.00033615,102830.0,102820.0,0.85932504]
[1734297561247,0.00033615,102830.0,102820.0,0.72853301]
[1734297561742,0.00033615,102830.0,102820.0,0.51249488]
[1734297561967,0.00033615,102830.0,102820.0,0.62947898]
[1734297563172,0.1001726,102840.0,102830.0,0.194495]
[1734297563173,0.09550875,102840.0,102830.0,0.194495]
[1734297563400,0.09550875,102840.0,102830.0,0.25298705]
[1734297564840,0.09550875,102840.0,102830.0,0.05849205]
[1734297565075,0.33498475,102840.0,102830.0,0.05849205]
[1734297565540,0.14050875,102840.0,102830.0,0.25298705]
[1734297566754,0.14050875,102840.0,102830.0,0.05849205]
[1734297567463,0.04550875,102830.0,102820.0,0.24990505]
[1734297567729,0.31840375,102830.0,102820.0,0.15024995]
[1734297567992,0.36840375,102830.0,102820.0,0.00024995]
[1734297568696,0.36840375,102830.0,102820.0,0.058742]
[1734297569194,0.42194903,102830.0,102820.0,0.00024995]
[1734297570138,0.47064903,102830.0,102820.0,0.00024995]
[1734297570859,0.42064903,102830.0,102820.0,0.00024995]
[1734297583221,0.04550875,102810.0,102800.0,2.02350625]
[1734297585086,0.04550875,102810.0,102800.0,2.10680625]
[1734297588962,0.7952588,102820.0,102810.0,0.194533]
[1734297589209,0.74975005,102820.0,102810.0,0.60426566]
[1734297589451,0.74975005,102820.0,102810.0,1.09593249]
[1734297589701,0.74975005,102820.0,102810.0,1.32879779]
[1734297590413,0.74975005,102820.0,102810.0,1.41791412]
[1734297591152,0.74975005,102820.0,102810.0,1.24341954]
[1734297591858,0.74975005,102820.0,102810.0,1.24325997]
[1734297592097,0.74975005,102820.0,102810.0,1.18194953]
[1734297592338,0.74975005,102820.0,102810.0,1.35636557]
[1734297592604,0.74975005,102820.0,102810.0,1.18194953]
[1734297593072,0.74975005,102820.0,102810.0,1.06502731]
[1734297593294,0.74975005,102820.0,102810.0,1.35636557]
[1734297593763,0.74975005,102820.0,102810.0,1.18194953]
[1734297594227,0.74992245,102820.0,102810.0,1.18194953]
[1734297594430,0.74992245,102820.0,102810.0,1.35636557]
[1734297595188,0.74992245,102820.0,102810.0,1.18194953]
[1734297595662,0.74992245,102820.0,102810.0,1.19750881]
[1734297596132,0.74992245,102820.0,102810.0,0.40022772]
[1734297596372,0.74992245,102820.0,102810.0,0.59476072]
[1734297597570,0.74992245,102820.0,102810.0,0.61382553]
[1734297599058,0.74992245,102820.0,102810.0,0.55536442]
[1734297599288,0.74992245,102820.0,102810.0,0.44513334]
[1734297600021,0.8764312,102820.0,102800.0,2.79883489]
[1734297600276,0.8764312,102820.0,102810.0,0.05846111]
[1734297600997,1.0709452,102820.0,102810.0,0.05846111]
[1734297601482,0.04550875,102810.0,102800.0,2.23013032]
[1734297601727,0.04550875,102810.0,102800.0,2.14293813]
[1734297601728,0.09200875,102810.0,102800.0,2.14293813]
[1734297602188,0.09200875,102810.0,102800.0,1.73994002]
[1734297602189,0.17300875,102810.0,102800.0,1.73994002]
[1734297602455,0.322033,102810.0,102800.0,1.73994002]
[1734297602952,0.322033,102810.0,102800.0,1.79840113]
[1734297603471,0.322033,102810.0,102800.0,1.79830103]
[1734297603972,0.322033,102810.0,102800.0,1.85676214]
[1734297605779,0.3222054,102810.0,102800.0,1.85676214]
[1734297606182,0.3222054,102810.0,102800.0,1.79830103]
[1734297607511,0.3722054,102810.0,102800.0,1.73983992]
[1734297607741,0.42125943,102810.0,102800.0,1.73983992]
[1734297609151,0.42125943,102810.0,102800.0,1.79830103]
[1734297609593,0.42125943,102810.0,102800.0,1.73983992]
[1734297613699,0.47125943,102810.0,102800.0,1.73983992]
[1734297614635,0.52972054,102810.0,102800.0,1.73983992]
[1734297615767,0.47125943,102810.0,102800.0,1.73983992]
[1734297619040,1.22100948,102810.0,102800.0,1.73983992]
[1734297631610,1.22394151,102810.0,102800.0,1.73983992]
[1734297636472,1.22495287,102810.0,102800.0,1.73983992]
[1734297641943,1.28347422,102810.0,102800.0,1.73983992]
[1734297642389,1.22495287,102810.0,102800.0,1.73983992]
[1734297645865,1.22495287,102810.0,102800.0,1.74591894]
[1734297648652,1.31139845,102810.0,102800.0,1.74591894]
[1734297649775,1.44106682,102810.0,102800.0,1.74591894]
[1734297650031,1.31139845,102810.0,102800.0,1.74591894]
[1734297650744,1.44106682,102810.0,102800.0,1.74591894]
[1734297653620,1.61395799,102810.0,102800.0,1.74591894]
[1734297653864,1.67247934,102810.0,102800.0,1.74591894]
[1734297654081,1.67247934,102810.0,102800.0,1.74591906]
[1734297655948,1.67425221,102810.0,102800.0,1.74591906]
[1734297656614,1.89135109,102810.0,102800.0,1.74591906]
[1734297657839,1.80451154,102810.0,102800.0,1.74591906]
[1734297658587,2.06757003,102810.0,102800.0,1.74591906]
[1734297658861,1.6735731,102810.0,102800.0,1.74591906]
[1734297659135,1.6735731,102810.0,102800.0,1.73983992]
[1734297659360,1.71699288,102810.0,102800.0,1.73983992]
[1734297659584,1.93419456,102810.0,102800.0,1.73983992]
[1734297660275,2.1948683,102810.0,102800.0,1.73983992]
[1734297660513,1.93434964,102810.0,102800.0,1.73983992]
[1734297660760,1.71713354,102810.0,102800.0,1.73983992]
[1734297661669,1.67366996,102810.0,102800.0,1.73983992]
[1734297661899,1.77272399,102810.0,102800.0,1.73983992]
[1734297662125,1.67366996,102810.0,102800.0,1.73983992]
[1734297663357,1.67364509,102810.0,102800.0,1.73983992]
[1734297666234,1.44212374,102810.0,102800.0,1.73983992]
[1734297666449,1.61584046,102810.0,102800.0,1.73983992]
[1734297666682,1.74612952,102810.0,102800.0,1.73983992]
[1734297668158,1.61512952,102810.0,102800.0,1.73983992]
[1734297668389,1.18081534,102810.0,102800.0,1.73983992]
[1734297668616,1.09395287,102810.0,102800.0,1.73983992]
[1734297668859,1.04745287,102810.0,102800.0,1.73983992]
[1734297669526,1.04745287,102810.0,102800.0,1.47968841]
[1734297670019,1.04745287,102810.0,102800.0,1.82323111]
[1734297670020,0.79937459,102810.0,102800.0,1.82323111]
[1734297670236,0.80055764,102810.0,102800.0,2.10526566]
[1734297670725,0.80055764,102810.0,102800.0,2.23648949]
[1734297670943,0.80055764,102810.0,102800.0,2.2425667]
[1734297671171,0.85055764,102810.0,102800.0,2.11134287]
[1734297671833,0.85055764,102810.0,102800.0,2.11134288]
[1734297672514,0.85055764,102810.0,102800.0,2.05282153]
[1734297672978,0.85055764,102810.0,102800.0,1.91780018]
[1734297673219,1.04863592,102810.0,102800.0,1.48576563]
[1734297673451,1.09853592,102810.0,102800.0,1.48576563]
[1734297673692,1.24015727,102810.0,102800.0,1.47968841]
[1734297673925,1.18163592,102810.0,102800.0,1.47968841]
[1734297674395,1.18163592,102810.0,102800.0,1.47977461]
[1734297676673,1.23163592,102810.0,102800.0,1.47977461]
[1734297678738,1.24625309,102810.0,102800.0,1.47977461]
[1734297679193,1.35844037,102810.0,102800.0,1.47977461]
[1734297679462,1.69872546,102810.0,102800.0,1.47977461]
[1734297679690,1.91555051,102810.0,102800.0,1.47977461]
[1734297680572,1.16580046,102810.0,102800.0,0.73002456]
[1734297680819,0.64542034,102810.0,102800.0,0.73002456]
[1734297682979,1.64542035,102810.0,102800.0,0.73002456]
[1734297683628,1.84542035,102810.0,102800.0,0.73002456]
[1734297684066,1.94447438,102810.0,102800.0,0.73002456]
[1734297684281,1.84542035,102810.0,102800.0,0.73002456]
[1734297688907,1.865004,102810.0,102800.0,0.73002456]
[1734297690036,1.86496371,102810.0,102800.0,0.73002456]
[1734297690694,2.16837776,102810.0,102800.0,0.73002456]
[1734297691119,1.9949983,102810.0,102800.0,0.57267657]
[1734297692032,1.93622737,102810.0,102800.0,0.57267657]
[1734297692274,1.78319278,102810.0,102800.0,0.57267657]
[1734297692927,1.69650305,102810.0,102800.0,0.57267657]
[1734297693143,1.78319278,102810.0,102800.0,0.57267657]
[1734297693608,1.69650305,102810.0,102800.0,0.57267657]
[1734297694261,1.64650305,102810.0,102800.0,0.57267657]
[1734297697036,1.44650305,102810.0,102800.0,0.57267657]
[1734297697241,1.31350305,102810.0,102800.0,0.57267657]
[1734297697452,1.34888588,102810.0,102800.0,0.57267657]
[1734297697680,1.05787663,102810.0,102800.0,0.64837657]
[1734297698101,1.25240963,102810.0,102800.0,0.64837657]
[1734297699164,1.25240963,102810.0,102800.0,0.65445456]
[1734297701813,1.35146366,102810.0,102800.0,0.57875456]
[1734297702698,1.30146366,102810.0,102800.0,0.57875456]
[1734297702919,1.34776366,102810.0,102800.0,0.57267657]
[1734297706599,1.361453,102810.0,102800.0,0.57267657]
[1734297706820,1.72571125,102810.0,102800.0,0.57267657]
[1734297707252,1.85736781,102810.0,102800.0,0.57267657]
[1734297707489,1.80736781,102810.0,102800.0,0.57267657]
[1734297708659,1.78540686,102810.0,102800.0,0.57267657]
[1734297709340,1.83540686,102810.0,102800.0,0.57267657]
[1734297709549,1.96545028,102810.0,102800.0,0.57267657]
[1734297710430,1.83540686,102810.0,102800.0,0.57267657]
[1734297713801,1.85526082,102810.0,102800.0,0.57267657]
[1734297714145,1.95431485,102810.0,102800.0,0.57267657]
[1734297714713,1.85526082,102810.0,102800.0,0.57267657]
[1734297716108,1.80526082,102810.0,102800.0,0.57267657]
[1734297716322,1.85526082,102810.0,102800.0,0.57267657]
[1734297716529,1.98530424,102810.0,102800.0,0.57267657]
[1734297717529,0.04550875,102770.0,102750.0,0.29542563]
[1734297717741,0.24011775,102770.0,102750.0,0.29542563]
[1734297717949,0.00759308,102760.0,102750.0,0.29542563]
[1734297718381,0.04550875,102750.0,102740.0,0.14992225]
[1734297718602,0.04550875,102750.0,102740.0,8.63e-05]
[1734297718826,0.05142606,102750.0,102740.0,0.00312657]
[1734297719041,0.05142606,102750.0,102740.0,0.28749851]
[1734297719481,0.05142606,102750.0,102740.0,0.09283251]
[1734297720323,0.05142606,102750.0,102740.0,0.28759861]
[1734297720797,0.05142606,102750.0,102740.0,0.29109861]
[1734297721022,0.10142606,102750.0,102740.0,0.29109861]
[1734297721228,0.05142606,102750.0,102740.0,0.29109861]